Workbook

Sheet Munka1
A2: Teológia / Taumaturgia osztójának számolása | G2: Megjegyzés:
G3: A táblázat nem veszi figyelembe a MaxVP-t (ami alacsony szinten számít a képletbe)
A4: Szakértelem | D4: Osztó | E4: 4%-os fejlődéshez szükséges VP | G4: Így a táblázat 150 MaxVP FELETT pontos (gondolom attól még használható)
A5: 1 | B5: - | C5: 9 | D5: 2 | E5: =4*D5 -> 8
A6: 10 | B6: - | C6: 15 | D6: 3 | E6: =4*D6 -> 12
A7: 16 | B7: - | C7: 19 | D7: 4 | E7: 16
A8: 20 | B8: - | C8: 23 | D8: 5 | E8: 20
A9: 24 | B9: - | C9: 27 | D9: 6 | E9: 24
A10: 28 | B10: - | C10: 34 | D10: 7 | E10: 28
A11: =A10+7 -> 35 | B11: - | C11: =C10+7 -> 41 | D11: 8 | E11: 32
A12: =A11+7 -> 42 | B12: - | C12: =C11+7 -> 48 | D12: 9 | E12: 36
A13: 49 | B13: - | C13: 55 | D13: 10 | E13: 40
A14: 56 | B14: - | C14: 62 | D14: 11 | E14: 44
A15: 63 | B15: - | C15: 69 | D15: 12 | E15: 48
A16: 70 | B16: - | C16: 76 | D16: 13 | E16: 52
A17: 77 | B17: - | C17: 83 | D17: 14 | E17: 56
A18: 84 | B18: - | C18: 90 | D18: 15 | E18: 60
A19: 91 | B19: - | C19: 97 | D19: 16 | E19: 64
A20: 98 | B20: - | C20: 104 | D20: 17 | E20: 68
A21: 105 | B21: - | C21: 111 | D21: 18 | E21: 72
A22: 112 | B22: - | C22: 118 | D22: 19 | E22: 76
A23: 119 | B23: - | C23: 125 | D23: 20 | E23: 80
A24: 126 | B24: - | C24: 132 | D24: 21 | E24: 84
A25: 133 | B25: - | C25: 139 | D25: 22 | E25: 88
A26: 140 | B26: - | C26: 146 | D26: 23 | E26: 92
A27: 147 | B27: - | C27: 153 | D27: 24 | E27: 96
A28: 154 | B28: - | C28: 160 | D28: 25 | E28: 100
A29: 161 | B29: - | C29: 167 | D29: 26 | E29: 104
A30: 168 | B30: - | C30: 174 | D30: 27 | E30: 108
A31: 175 | B31: - | C31: 181 | D31: 28 | E31: 112
A32: 182 | B32: - | C32: 188 | D32: 29 | E32: 116
A33: 189 | B33: - | C33: 195 | D33: 30 | E33: 120
A34: 196 | B34: - | C34: 202 | D34: 31 | E34: 124
A35: 203 | B35: - | C35: 209 | D35: 32 | E35: 128
A36: 210 | B36: - | C36: 216 | D36: 33 | E36: 132
A37: 217 | B37: - | C37: 223 | D37: 34 | E37: 136
A38: 224 | B38: - | C38: 230 | D38: 35 | E38: 140
A39: 231 | B39: - | C39: 237 | D39: 36 | E39: 144
A40: 238 | B40: - | C40: 244 | D40: 37 | E40: 148
A41: 245 | B41: - | C41: 251 | D41: 38 | E41: 152
A42: 252 | B42: - | C42: 258 | D42: 39 | E42: 156
A43: 259 | B43: - | C43: 265 | D43: 40 | E43: 160
A44: 266 | B44: - | C44: 272 | D44: 41 | E44: 164
A45: 273 | B45: - | C45: 279 | D45: 42 | E45: 168
A46: 280 | B46: - | C46: 286 | D46: 43 | E46: 172
A47: 287 | B47: - | C47: 293 | D47: 44 | E47: 176
A48: 294 | B48: - | C48: 300 | D48: 45 | E48: 180
A49: 301 | B49: - | C49: 307 | D49: 46 | E49: 184
A50: 308 | B50: - | C50: 314 | D50: 47 | E50: 188
A51: 315 | B51: - | C51: 321 | D51: 48 | E51: 192
A52: 322 | B52: - | C52: 328 | D52: 49 | E52: 196
A53: 329 | B53: - | C53: 335 | D53: 50 | E53: 200
A54: 336 | B54: - | C54: 342 | D54: 51 | E54: 204
A55: 343 | B55: - | C55: 349 | D55: 52 | E55: 208
A56: 350 | B56: - | C56: 356 | D56: 53 | E56: 212
A57: 357 | B57: - | C57: 363 | D57: 54 | E57: 216
A58: 364 | B58: - | C58: 370 | D58: 55 | E58: 220
A59: 371 | B59: - | C59: 377 | D59: 56 | E59: 224
A60: 378 | B60: - | C60: 384 | D60: 57 | E60: 228
A61: 385 | B61: - | C61: 391 | D61: 58 | E61: 232
A62: 392 | B62: - | C62: 398 | D62: 59 | E62: 236
A63: 399 | B63: - | C63: 405 | D63: 60 | E63: 240
A64: 406 | B64: - | C64: 412 | D64: 61 | E64: 244
A65: 413 | B65: - | C65: 419 | D65: 62 | E65: 248
A66: 420 | B66: - | C66: 426 | D66: 63 | E66: 252
A67: 427 | B67: - | C67: 433 | D67: 64 | E67: 256
A68: 434 | B68: - | C68: 440 | D68: 65 | E68: 260
A69: 441 | B69: - | C69: 447 | D69: 66 | E69: 264
A70: 448 | B70: - | C70: 454 | D70: 67 | E70: =4*D70 -> 268
A71: 455 | B71: - | C71: 461 | D71: 68 | E71: 272
A72: 462 | B72: - | C72: 468 | D72: 69 | E72: 276
A73: 469 | B73: - | C73: 475 | D73: 70 | E73: 280
A74: 476 | B74: - | C74: 482 | D74: 71 | E74: 284
A75: 483 | B75: - | C75: 489 | D75: 72 | E75: 288
A76: =A75+7 -> 490 | B76: - | C76: =C75+7 -> 496 | D76: 73 | E76: 292
A77: 497 | B77: - | C77: 503 | D77: 74 | E77: 296
A78: 504 | B78: - | C78: 510 | D78: 75 | E78: 300
A79: 511 | B79: - | C79: 517 | D79: 76 | E79: 304
A80: 518 | B80: - | C80: 524 | D80: 77 | E80: 308
A81: 525 | B81: - | C81: 531 | D81: 78 | E81: 312
A82: 532 | B82: - | C82: 538 | D82: 79 | E82: 316
A83: 539 | B83: - | C83: 545 | D83: 80 | E83: 320
A84: 546 | B84: - | C84: 552 | D84: 81 | E84: 324
A85: 553 | B85: - | C85: 559 | D85: 82 | E85: 328
A86: 560 | B86: - | C86: 566 | D86: 83 | E86: 332
A87: 567 | B87: - | C87: 573 | D87: 84 | E87: 336
A88: 574 | B88: - | C88: 580 | D88: 85 | E88: 340
A89: 581 | B89: - | C89: 587 | D89: 86 | E89: 344
A90: 588 | B90: - | C90: 594 | D90: 87 | E90: 348
A91: 595 | B91: - | C91: 601 | D91: 88 | E91: 352
A92: 602 | B92: - | C92: 608 | D92: 89 | E92: 356
A93: 609 | B93: - | C93: 615 | D93: 90 | E93: 360
A94: 616 | B94: - | C94: 622 | D94: 91 | E94: =4*D94 -> 364
A95: 623 | B95: - | C95: 629 | D95: 92 | E95: 368
A96: 630 | B96: - | C96: 636 | D96: 93 | E96: 372
A97: 637 | B97: - | C97: 643 | D97: 94 | E97: 376
A98: 644 | B98: - | C98: 650 | D98: 95 | E98: 380
A99: 651 | B99: - | C99: 657 | D99: 96 | E99: 384
A100: 658 | B100: - | C100: 664 | D100: 97 | E100: 388
A101: 665 | B101: - | C101: 671 | D101: 98 | E101: 392
A102: 672 | B102: - | C102: 678 | D102: 99 | E102: 396
A103: 679 | B103: - | C103: 685 | D103: 100 | E103: 400
A104: 686 | B104: - | C104: 692 | D104: 101 | E104: 404
A105: 693 | B105: - | C105: 699 | D105: 102 | E105: 408
A106: 700 | B106: - | C106: 706 | D106: 103 | E106: 412
A107: 707 | B107: - | C107: 713 | D107: 104 | E107: 416
A108: 714 | B108: - | C108: 720 | D108: 105 | E108: 420
A109: 721 | B109: - | C109: 727 | D109: 106 | E109: 424
A110: 728 | B110: - | C110: 734 | D110: 107 | E110: 428
A111: 735 | B111: - | C111: 741 | D111: 108 | E111: 432
A112: 742 | B112: - | C112: 748 | D112: 109 | E112: 436
A113: 749 | B113: - | C113: 755 | D113: 110 | E113: 440
A114: 756 | B114: - | C114: 762 | D114: 111 | E114: 444
A115: 763 | B115: - | C115: 769 | D115: 112 | E115: 448
A116: 770 | B116: - | C116: 776 | D116: 113 | E116: 452
A117: 777 | B117: - | C117: 783 | D117: 114 | E117: =4*D117 -> 456
A118: 784 | B118: - | C118: 790 | D118: 115 | E118: 460
A119: 791 | B119: - | C119: 797 | D119: 116 | E119: 464
A120: 798 | B120: - | C120: 804 | D120: 117 | E120: 468
A121: 805 | B121: - | C121: 811 | D121: 118 | E121: 472
A122: 812 | B122: - | C122: 818 | D122: 119 | E122: 476
A123: 819 | B123: - | C123: 825 | D123: 120 | E123: 480
A124: 826 | B124: - | C124: 832 | D124: 121 | E124: 484
A125: 833 | B125: - | C125: 839 | D125: 122 | E125: 488
A126: 840 | B126: - | C126: 846 | D126: 123 | E126: 492
A127: 847 | B127: - | C127: 853 | D127: 124 | E127: 496
A128: 854 | B128: - | C128: 860 | D128: 125 | E128: 500
A129: 861 | B129: - | C129: 867 | D129: 126 | E129: =4*D129 -> 504
A130: 868 | B130: - | C130: 874 | D130: 127 | E130: 508
A131: 875 | B131: - | C131: 881 | D131: 128 | E131: 512
A132: 882 | B132: - | C132: 888 | D132: 129 | E132: 516
A133: 889 | B133: - | C133: 895 | D133: 130 | E133: 520
A134: 896 | B134: - | C134: 902 | D134: 131 | E134: 524
A135: 903 | B135: - | C135: 909 | D135: 132 | E135: 528
A136: 910 | B136: - | C136: 916 | D136: 133 | E136: 532
A137: 917 | B137: - | C137: 923 | D137: 134 | E137: 536
A138: 924 | B138: - | C138: 930 | D138: 135 | E138: 540
A139: 931 | B139: - | C139: 937 | D139: 136 | E139: 544
A140: =A139+7 -> 938 | B140: - | C140: =C139+7 -> 944 | D140: 137 | E140: 548
A141: 945 | B141: - | C141: 951 | D141: 138 | E141: 552
A142: 952 | B142: - | C142: 958 | D142: 139 | E142: 556
A143: 959 | B143: - | C143: 965 | D143: 140 | E143: 560
A144: 966 | B144: - | C144: 972 | D144: 141 | E144: 564
A145: 973 | B145: - | C145: 979 | D145: 142 | E145: 568
A146: 980 | B146: - | C146: 986 | D146: 143 | E146: 572
A147: 987 | B147: - | C147: 993 | D147: 144 | E147: 576
A148: 994 | B148: - | C148: 1000 | D148: 145 | E148: 580
A149: 1001 | B149: - | C149: 1007 | D149: 146 | E149: 584
A150: 1008 | B150: - | C150: 1014 | D150: 147 | E150: 588
A151: 1015 | B151: - | C151: 1021 | D151: 148 | E151: 592
A152: 1022 | B152: - | C152: 1028 | D152: 149 | E152: 596
A153: 1029 | B153: - | C153: 1035 | D153: 150 | E153: 600
A154: 1036 | B154: - | C154: 1042 | D154: 151 | E154: 604
A155: 1043 | B155: - | C155: 1049 | D155: 152 | E155: 608
A156: 1050 | B156: - | C156: 1056 | D156: 153 | E156: 612
A157: 1057 | B157: - | C157: 1063 | D157: 154 | E157: 616
A158: 1064 | B158: - | C158: 1070 | D158: 155 | E158: 620
A159: 1071 | B159: - | C159: 1077 | D159: 156 | E159: 624
A160: 1078 | B160: - | C160: 1084 | D160: 157 | E160: 628
A161: 1085 | B161: - | C161: 1091 | D161: 158 | E161: 632
A162: 1092 | B162: - | C162: 1098 | D162: 159 | E162: 636
A163: 1099 | B163: - | C163: 1105 | D163: 160 | E163: 640
A164: 1106 | B164: - | C164: 1112 | D164: 161 | E164: 644
A165: 1113 | B165: - | C165: 1119 | D165: 162 | E165: 648
A166: 1120 | B166: - | C166: 1126 | D166: 163 | E166: 652
A167: 1127 | B167: - | C167: 1133 | D167: 164 | E167: 656
A168: 1134 | B168: - | C168: 1140 | D168: 165 | E168: 660
A169: 1141 | B169: - | C169: 1147 | D169: 166 | E169: 664
A170: 1148 | B170: - | C170: 1154 | D170: 167 | E170: 668
A171: 1155 | B171: - | C171: 1161 | D171: 168 | E171: 672
A172: 1162 | B172: - | C172: 1168 | D172: 169 | E172: 676
A173: 1169 | B173: - | C173: 1175 | D173: 170 | E173: 680
A174: 1176 | B174: - | C174: 1182 | D174: 171 | E174: 684
A175: 1183 | B175: - | C175: 1189 | D175: 172 | E175: 688
A176: 1190 | B176: - | C176: 1196 | D176: 173 | E176: 692
A177: 1197 | B177: - | C177: 1203 | D177: 174 | E177: 696
A178: 1204 | B178: - | C178: 1210 | D178: 175 | E178: 700
A179: 1211 | B179: - | C179: 1217 | D179: 176 | E179: 704
A180: 1218 | B180: - | C180: 1224 | D180: 177 | E180: 708
A181: 1225 | B181: - | C181: 1231 | D181: 178 | E181: 712
A182: 1232 | B182: - | C182: 1238 | D182: 179 | E182: 716
A183: 1239 | B183: - | C183: 1245 | D183: 180 | E183: 720
A184: 1246 | B184: - | C184: 1252 | D184: 181 | E184: 724
A185: 1253 | B185: - | C185: 1259 | D185: 182 | E185: 728
A186: 1260 | B186: - | C186: 1266 | D186: 183 | E186: 732
A187: 1267 | B187: - | C187: 1273 | D187: 184 | E187: =4*D187 -> 736
A188: 1274 | B188: - | C188: 1280 | D188: 185 | E188: 740
A189: 1281 | B189: - | C189: 1287 | D189: 186 | E189: 744
A190: 1288 | B190: - | C190: 1294 | D190: 187 | E190: 748
A191: 1295 | B191: - | C191: 1301 | D191: 188 | E191: 752
A192: 1302 | B192: - | C192: 1308 | D192: 189 | E192: 756
A193: 1309 | B193: - | C193: 1315 | D193: 190 | E193: 760
A194: 1316 | B194: - | C194: 1322 | D194: 191 | E194: 764
A195: 1323 | B195: - | C195: 1329 | D195: 192 | E195: 768
A196: 1330 | B196: - | C196: 1336 | D196: 193 | E196: 772
A197: 1337 | B197: - | C197: 1343 | D197: 194 | E197: 776
A198: 1344 | B198: - | C198: 1350 | D198: 195 | E198: 780
A199: 1351 | B199: - | C199: 1357 | D199: 196 | E199: 784
A200: 1358 | B200: - | C200: 1364 | D200: 197 | E200: 788
A201: 1365 | B201: - | C201: 1371 | D201: 198 | E201: 792
... 1233 more rows

Sheet Munka2

Sheet Munka3
